{"text_format":"1","workbook":"xlsx","n_sheets":3,"sheets":["Бланк Методички","Обработка результатов","Печать"],"not_rendered":{"charts":0,"images":1,"macros":1,"external_links":0,"defined_names":2,"comments":0,"pivot_tables":0},"unopened":[],"bounds":{"document_bytes":16777216,"sheet_cells":100000,"rows_first":2000,"rows_last":500,"rows_between":2000,"halvings":0,"cell_chars":16384,"cell_head_chars":4096},"cells_cut":0,"cells_raw":0,"read":"whole","date_system":"1900"}

{"sheet":"Бланк Методички","index":0,"n_rows":39,"n_cols":34,"rows_kept":39,"cut":false,"hidden":false,"merged":[[24,5,24,8],[25,5,25,8],[26,5,26,8],[13,5,13,8],[14,5,14,8],[15,5,15,8],[25,1,25,4],[27,1,27,4],[22,5,22,8],[20,1,20,4],[18,1,18,4],[19,1,19,4],[19,5,19,8],[20,5,20,8],[16,5,16,8],[17,5,17,8],[18,5,18,8],[21,5,21,8],[23,5,23,8],[4,0,7,14],[9,5,9,8],[10,5,10,8],[11,5,11,8],[12,5,12,8],[2,15,2,18],[1,10,1,11],[1,12,1,14],[1,0,1,2],[1,3,1,8],[2,0,2,2],[2,3,2,8],[15,1,15,4],[17,1,17,4],[38,1,38,4],[28,1,28,4],[26,1,26,4],[24,1,24,4],[22,1,22,4],[21,1,21,4],[23,1,23,4],[14,1,14,4],[12,1,12,4],[10,1,10,4],[9,1,9,4],[11,1,11,4],[13,1,13,4],[34,1,34,4],[35,1,35,4],[36,1,36,4],[37,1,37,4],[16,1,16,4],[29,1,29,4],[30,1,30,4],[31,1,31,4],[32,1,32,4],[33,1,33,4],[36,5,36,8],[37,5,37,8],[38,5,38,8],[27,5,27,8],[28,5,28,8],[29,5,29,8],[30,5,30,8],[31,5,31,8],[32,5,32,8],[33,5,33,8],[34,5,34,8],[35,5,35,8]]}
[null,null,null,null,null,null,null,null,null,null,null,null,null,null,null,null,null,null,null,null,null,null,null,null,null,null,null,null,null,null,null,null,10,"5 А"]
["Фамилия, имя",null,null,null,null,null,null,null,null,null,"Класс",null,null,null,null,null,null,null,null,null,null,null,null,null,null,null,null,null,null,null,null,null,11,"5 Б"]
["Возраст",null,null,null,null,null,null,null,null,null,null,null,null,null,null,null,null,null,null,null,null,null,null,null,null,null,null,null,null,null,null,null,12,"5 В"]
[null,null,null,null,null,null,null,null,null,null,null,null,null,null,null,null,null,null,null,null,null,null,null,null,null,null,null,null,null,null,null,null,13]
["Оцените, пожалуйста, по 4-балльной шкале то, в какой степени каждое понятие описывает ваше самочувствие в данный момент, проставив подходящую для вас оценку, выбрав ее из списка.",null,null,null,null,null,null,null,null,null,null,null,null,null,null,null,null,null,null,null,null,null,null,null,null,null,null,null,null,null,null,"Мальчик",14]
[null,null,null,null,null,null,null,null,null,null,null,null,null,null,null,null,null,null,null,null,null,null,null,null,null,null,null,null,null,null,null,"Девочка",15]
[null,null,null,null,null,null,null,null,null,null,null,null,null,null,null,null,null,null,null,null,null,null,null,null,null,null,null,null,null,null,null,null,16]
[]
[]
[1,"Внимательный",null,null,null,null,null,null,null,null,null,null,null,null,null,null,null,null,null,null,null,null,null,null,"Совсем не подходит"]
[2,"Наслаждающийся",null,null,null,null,null,null,null,null,null,null,null,null,null,null,null,null,null,null,null,null,null,null,"Пожалуй, верно"]
[3,"Удивленный",null,null,null,null,null,null,null,null,null,null,null,null,null,null,null,null,null,null,null,null,null,null,"Верно"]
[4,"Унылый",null,null,null,null,null,null,null,null,null,null,null,null,null,null,null,null,null,null,null,null,null,null,"Совершенно верно"]
[5,"Взбешенный"]
[6,"Чувствующий неприязнь"]
[7,"Презрительный"]
[8,"Пугающий"]
[9,"Застенчивый"]
[10,"Сожалеющий"]
[11,"Концентрированный"]
[12,"Счастливый"]
[13,"Изумленный"]
[14,"Печальный"]
[15,"Гневный"]
[16,"Чувствующий отвращение"]
[17,"Пренебрегающий"]
[18,"Страшный"]
[19,"Робкий"]
[20,"Виноватый"]
[21,"Собранный"]
[22,"Радостный"]
[23,"Пораженный"]
[24,"Сломленный"]
[25,"Безумный"]
[26,"Чувствующий омерзение"]
[27,"Надменный"]
[28,"Сеющий панику"]
[29,"Стыдливый"]
[30,"Раскаивающийся"]

{"sheet":"Обработка результатов","index":1,"n_rows":15,"n_cols":16,"rows_kept":15,"cut":false,"hidden":false,"merged":[[2,0,2,2],[2,4,2,6],[2,8,2,11],[3,0,3,2],[3,4,3,6],[3,8,3,11],[4,0,4,2],[4,4,4,6],[4,8,4,11],[5,0,5,2],[5,4,5,6],[5,8,5,11],[6,0,6,2],[6,4,6,6],[6,8,6,11],[7,0,7,2],[7,4,7,6],[7,8,7,11],[10,8,10,11],[11,0,11,2],[11,4,11,6],[11,8,11,11],[8,0,8,2],[8,4,8,6],[8,8,8,11],[9,0,9,2],[9,4,9,6],[9,8,9,11],[14,0,14,3],[10,13,10,14],[11,13,11,14],[0,0,1,12],[0,13,1,15],[13,0,13,3],[4,13,4,14],[5,13,5,14],[6,13,6,14],[7,13,7,14],[8,13,8,14],[9,13,9,14],[2,13,2,14],[3,13,3,14],[10,0,10,2],[10,4,10,6]]}
["Тестовый материал",null,null,null,null,null,null,null,null,null,null,null,null,"Эмоция"]
[]
["Внимательный",null,null,{"$f":"IF('Бланк Методички'!F10='Бланк Методички'!$Y$10,1,IF('Бланк Методички'!F10='Бланк Методички'!$Y$11,2,IF('Бланк Методички'!F10='Бланк Методички'!$Y$12,3,IF('Бланк Методички'!F10='Бланк Методички'!$Y$13,4,0))))","v":0},"Концентрированный",null,null,{"$f":"IF('Бланк Методички'!F20='Бланк Методички'!$Y$10,1,IF('Бланк Методички'!F20='Бланк Методички'!$Y$11,2,IF('Бланк Методички'!F20='Бланк Методички'!$Y$12,3,IF('Бланк Методички'!F20='Бланк Методички'!$Y$13,4,0))))","v":0},"Собранный",null,null,null,{"$f":"IF('Бланк Методички'!F30='Бланк Методички'!$Y$10,1,IF('Бланк Методички'!F30='Бланк Методички'!$Y$11,2,IF('Бланк Методички'!F30='Бланк Методички'!$Y$12,3,IF('Бланк Методички'!F30='Бланк Методички'!$Y$13,4,0))))","v":0},"Интерес",null,{"$f":"SUM(D3,H3,M3)","v":0}]
["Наслаждающийся",null,null,{"$f":"IF('Бланк Методички'!F11='Бланк Методички'!$Y$10,1,IF('Бланк Методички'!F11='Бланк Методички'!$Y$11,2,IF('Бланк Методички'!F11='Бланк Методички'!$Y$12,3,IF('Бланк Методички'!F11='Бланк Методички'!$Y$13,4,0))))","v":0},"Счастливый",null,null,{"$f":"IF('Бланк Методички'!F21='Бланк Методички'!$Y$10,1,IF('Бланк Методички'!F21='Бланк Методички'!$Y$11,2,IF('Бланк Методички'!F21='Бланк Методички'!$Y$12,3,IF('Бланк Методички'!F21='Бланк Методички'!$Y$13,4,0))))","v":0},"Радостный",null,null,null,{"$f":"IF('Бланк Методички'!F31='Бланк Методички'!$Y$10,1,IF('Бланк Методички'!F31='Бланк Методички'!$Y$11,2,IF('Бланк Методички'!F31='Бланк Методички'!$Y$12,3,IF('Бланк Методички'!F31='Бланк Методички'!$Y$13,4,0))))","v":0},"Радость",null,{"$f":"SUM(D4,H4,M4)","v":0}]
["Удивленный",null,null,{"$f":"IF('Бланк Методички'!F12='Бланк Методички'!$Y$10,1,IF('Бланк Методички'!F12='Бланк Методички'!$Y$11,2,IF('Бланк Методички'!F12='Бланк Методички'!$Y$12,3,IF('Бланк Методички'!F12='Бланк Методички'!$Y$13,4,0))))","v":0},"Изумленный",null,null,{"$f":"IF('Бланк Методички'!F22='Бланк Методички'!$Y$10,1,IF('Бланк Методички'!F22='Бланк Методички'!$Y$11,2,IF('Бланк Методички'!F22='Бланк Методички'!$Y$12,3,IF('Бланк Методички'!F22='Бланк Методички'!$Y$13,4,0))))","v":0},"Пораженный",null,null,null,{"$f":"IF('Бланк Методички'!F32='Бланк Методички'!$Y$10,1,IF('Бланк Методички'!F32='Бланк Методички'!$Y$11,2,IF('Бланк Методички'!F32='Бланк Методички'!$Y$12,3,IF('Бланк Методички'!F32='Бланк Методички'!$Y$13,4,0))))","v":0},"Удивление",null,0]
["Унылый",null,null,{"$f":"IF('Бланк Методички'!F13='Бланк Методички'!$Y$10,1,IF('Бланк Методички'!F13='Бланк Методички'!$Y$11,2,IF('Бланк Методички'!F13='Бланк Методички'!$Y$12,3,IF('Бланк Методички'!F13='Бланк Методички'!$Y$13,4,0))))","v":0},"Печальный",null,null,{"$f":"IF('Бланк Методички'!F23='Бланк Методички'!$Y$10,1,IF('Бланк Методички'!F23='Бланк Методички'!$Y$11,2,IF('Бланк Методички'!F23='Бланк Методички'!$Y$12,3,IF('Бланк Методички'!F23='Бланк Методички'!$Y$13,4,0))))","v":0},"Сломленный",null,null,null,{"$f":"IF('Бланк Методички'!F33='Бланк Методички'!$Y$10,1,IF('Бланк Методички'!F33='Бланк Методички'!$Y$11,2,IF('Бланк Методички'!F33='Бланк Методички'!$Y$12,3,IF('Бланк Методички'!F33='Бланк Методички'!$Y$13,4,0))))","v":0},"Горе",null,0]
["Взбешенный",null,null,{"$f":"IF('Бланк Методички'!F14='Бланк Методички'!$Y$10,1,IF('Бланк Методички'!F14='Бланк Методички'!$Y$11,2,IF('Бланк Методички'!F14='Бланк Методички'!$Y$12,3,IF('Бланк Методички'!F14='Бланк Методички'!$Y$13,4,0))))","v":0},"Гневный",null,null,{"$f":"IF('Бланк Методички'!F24='Бланк Методички'!$Y$10,1,IF('Бланк Методички'!F24='Бланк Методички'!$Y$11,2,IF('Бланк Методички'!F24='Бланк Методички'!$Y$12,3,IF('Бланк Методички'!F24='Бланк Методички'!$Y$13,4,0))))","v":0},"Безумный",null,null,null,{"$f":"IF('Бланк Методички'!F34='Бланк Методички'!$Y$10,1,IF('Бланк Методички'!F34='Бланк Методички'!$Y$11,2,IF('Бланк Методички'!F34='Бланк Методички'!$Y$12,3,IF('Бланк Методички'!F34='Бланк Методички'!$Y$13,4,0))))","v":0},"Гнев",null,0]
["Чувствующий неприязнь",null,null,{"$f":"IF('Бланк Методички'!F15='Бланк Методички'!$Y$10,1,IF('Бланк Методички'!F15='Бланк Методички'!$Y$11,2,IF('Бланк Методички'!F15='Бланк Методички'!$Y$12,3,IF('Бланк Методички'!F15='Бланк Методички'!$Y$13,4,0))))","v":0},"Чувствующий отвращение",null,null,{"$f":"IF('Бланк Методички'!F25='Бланк Методички'!$Y$10,1,IF('Бланк Методички'!F25='Бланк Методички'!$Y$11,2,IF('Бланк Методички'!F25='Бланк Методички'!$Y$12,3,IF('Бланк Методички'!F25='Бланк Методички'!$Y$13,4,0))))","v":0},"Чувствующий омерзение",null,null,null,{"$f":"IF('Бланк Методички'!F35='Бланк Методички'!$Y$10,1,IF('Бланк Методички'!F35='Бланк Методички'!$Y$11,2,IF('Бланк Методички'!F35='Бланк Методички'!$Y$12,3,IF('Бланк Методички'!F35='Бланк Методички'!$Y$13,4,0))))","v":0},"Отвращение",null,0]
["Презрительный",null,null,{"$f":"IF('Бланк Методички'!F16='Бланк Методички'!$Y$10,1,IF('Бланк Методички'!F16='Бланк Методички'!$Y$11,2,IF('Бланк Методички'!F16='Бланк Методички'!$Y$12,3,IF('Бланк Методички'!F16='Бланк Методички'!$Y$13,4,0))))","v":0},"Пренебрегающий",null,null,{"$f":"IF('Бланк Методички'!F26='Бланк Методички'!$Y$10,1,IF('Бланк Методички'!F26='Бланк Методички'!$Y$11,2,IF('Бланк Методички'!F26='Бланк Методички'!$Y$12,3,IF('Бланк Методички'!F26='Бланк Методички'!$Y$13,4,0))))","v":0},"Надменный",null,null,null,{"$f":"IF('Бланк Методички'!F36='Бланк Методички'!$Y$10,1,IF('Бланк Методички'!F36='Бланк Методички'!$Y$11,2,IF('Бланк Методички'!F36='Бланк Методички'!$Y$12,3,IF('Бланк Методички'!F36='Бланк Методички'!$Y$13,4,0))))","v":0},"Презрение",null,0]
["Пугающий",null,null,{"$f":"IF('Бланк Методички'!F17='Бланк Методички'!$Y$10,1,IF('Бланк Методички'!F17='Бланк Методички'!$Y$11,2,IF('Бланк Методички'!F17='Бланк Методички'!$Y$12,3,IF('Бланк Методички'!F17='Бланк Методички'!$Y$13,4,0))))","v":0},"Страшный",null,null,{"$f":"IF('Бланк Методички'!F27='Бланк Методички'!$Y$10,1,IF('Бланк Методички'!F27='Бланк Методички'!$Y$11,2,IF('Бланк Методички'!F27='Бланк Методички'!$Y$12,3,IF('Бланк Методички'!F27='Бланк Методички'!$Y$13,4,0))))","v":0},"Сеющий панику",null,null,null,{"$f":"IF('Бланк Методички'!F37='Бланк Методички'!$Y$10,1,IF('Бланк Методички'!F37='Бланк Методички'!$Y$11,2,IF('Бланк Методички'!F37='Бланк Методички'!$Y$12,3,IF('Бланк Методички'!F37='Бланк Методички'!$Y$13,4,0))))","v":0},"Страх",null,0]
["Застенчивый",null,null,{"$f":"IF('Бланк Методички'!F18='Бланк Методички'!$Y$10,1,IF('Бланк Методички'!F18='Бланк Методички'!$Y$11,2,IF('Бланк Методички'!F18='Бланк Методички'!$Y$12,3,IF('Бланк Методички'!F18='Бланк Методички'!$Y$13,4,0))))","v":0},"Робкий",null,null,{"$f":"IF('Бланк Методички'!F28='Бланк Методички'!$Y$10,1,IF('Бланк Методички'!F28='Бланк Методички'!$Y$11,2,IF('Бланк Методички'!F28='Бланк Методички'!$Y$12,3,IF('Бланк Методички'!F28='Бланк Методички'!$Y$13,4,0))))","v":0},"Стыдливый",null,null,null,{"$f":"IF('Бланк Методички'!F38='Бланк Методички'!$Y$10,1,IF('Бланк Методички'!F38='Бланк Методички'!$Y$11,2,IF('Бланк Методички'!F38='Бланк Методички'!$Y$12,3,IF('Бланк Методички'!F38='Бланк Методички'!$Y$13,4,0))))","v":0},"Стыд",null,0]
["Сожалеющий",null,null,{"$f":"IF('Бланк Методички'!F19='Бланк Методички'!$Y$10,1,IF('Бланк Методички'!F19='Бланк Методички'!$Y$11,2,IF('Бланк Методички'!F19='Бланк Методички'!$Y$12,3,IF('Бланк Методички'!F19='Бланк Методички'!$Y$13,4,0))))","v":0},"Виноватый",null,null,{"$f":"IF('Бланк Методички'!F29='Бланк Методички'!$Y$10,1,IF('Бланк Методички'!F29='Бланк Методички'!$Y$11,2,IF('Бланк Методички'!F29='Бланк Методички'!$Y$12,3,IF('Бланк Методички'!F29='Бланк Методички'!$Y$13,4,0))))","v":0},"Раскаивающийся",null,null,null,{"$f":"IF('Бланк Методички'!F39='Бланк Методички'!$Y$10,1,IF('Бланк Методички'!F39='Бланк Методички'!$Y$11,2,IF('Бланк Методички'!F39='Бланк Методички'!$Y$12,3,IF('Бланк Методички'!F39='Бланк Методички'!$Y$13,4,0))))","v":0},"Вина",null,0]
[]
["Коэффициент самочувствия"]
[{"$f":"(SUM(P3,P4,P5,P11,P12))/(SUM(P6,P7,P8,P9,P10))","v":{"$error":"#DIV/0!"}}]

{"sheet":"Печать","index":2,"n_rows":38,"n_cols":8,"rows_kept":38,"cut":false,"hidden":false,"merged":[[5,4,5,6],[6,4,6,6],[0,0,0,8],[2,7,2,8],[3,7,3,8],[2,1,2,5],[3,1,3,5],[37,5,37,8],[9,4,9,6],[11,0,11,3],[11,5,11,8],[5,7,5,8],[6,7,6,8],[7,7,7,8],[8,7,8,8],[9,7,9,8],[7,0,7,2],[8,0,8,2],[7,4,7,6],[8,4,8,6],[9,0,9,2],[5,0,5,2],[6,0,6,2]]}
["Шкала дифференциальных эмоций К. Изарда."]
[]
["ФИО",{"$f":"PROPER('Бланк Методички'!D2)","v":""},null,null,null,null,"Класс",{"$f":"'Бланк Методички'!M2","v":0}]
["Возраст",{"$f":"CONCATENATE('Бланк Методички'!D3, \" лет\")","v":" лет"},null,null,null,null,"Дата",{"$f":"TODAY()","v":"2018-03-09"}]
[]
["Интерес",null,null,{"$f":"'Обработка результатов'!P3","v":0},"Удивление",null,null,{"$f":"'Обработка результатов'!P5","v":0}]
["Радость",null,null,{"$f":"'Обработка результатов'!P4","v":0},"Горе",null,null,{"$f":"'Обработка результатов'!P6","v":0}]
["Гнев",null,null,{"$f":"'Обработка результатов'!P7","v":0},"Презрение",null,null,{"$f":"'Обработка результатов'!P9","v":0}]
["Отвращение",null,null,{"$f":"'Обработка результатов'!P8","v":0},"Страх",null,null,{"$f":"'Обработка результатов'!P10","v":0}]
["Стыд",null,null,{"$f":"'Обработка результатов'!P11","v":0},"Вина",null,null,{"$f":"'Обработка результатов'!P12","v":0}]
[]
["Коэффициент самочувствия:",null,null,null,{"$f":"'Обработка результатов'!A15","v":{"$error":"#DIV/0!"}},{"$f":"IF(E12>=1,\"Положительное самочувствие\",\"Отрицательное самочувствие\")","v":{"$error":"#DIV/0!"}}]
[]
[]
[]
[]
[]
[]
[]
[]
[]
[]
[]
[]
[]
[]
[]
[]
[]
[]
[]
[]
[]
[]
[]
[]
[]
[null,null,null,null,null,"http://eschool.by/courses/psy/"]